fUSD/lending_fUSD_20250623
["ID","MTS","AMOUNT","RATE_DAILY","PERIOD"]
[367220348,1750704647754,-673.01,0.00022881,2]
[367220350,1750704647764,-490.0,0.00022881,2]
[367220352,1750704647773,-490.0,0.00022881,2]
[367220354,1750704647782,-917.34,0.00022881,2]
[367220356,1750704647791,-490.0,0.00022881,2]
[367220358,1750704647801,-920.47,0.00022881,2]
[367220360,1750704647810,-236.94190361,0.00022881,2]
[367220362,1750704647819,-490.0,0.00022881,2]
[367220364,1750704647828,-490.0,0.00022881,2]
[367220366,1750704647838,-490.0,0.00022881,2]
[367220368,1750704647847,-490.0,0.00022881,2]
[367220370,1750704647856,-679.48,0.00022881,2]
[367220372,1750704647866,-490.0,0.00022881,2]
[367220374,1750704647875,-490.0,0.00022881,2]
[367220376,1750704647884,-490.0,0.00022881,2]
[367220378,1750704647894,-490.0,0.00022881,2]
[367220380,1750704647903,-967.45,0.00022881,2]
[367220382,1750704647913,-636.0,0.00022881,2]
[367220384,1750704647922,-490.0,0.00022881,2]
[367220386,1750704647932,-490.0,0.00022881,2]
[367220388,1750704647941,-490.0,0.00022881,2]
[367220390,1750704647950,-1318.73,0.00022881,2]
[367220392,1750704647961,-490.0,0.00022881,2]
[367220394,1750704647972,-490.0,0.00022881,2]
[367220396,1750704647982,-1328.07,0.00022881,2]
[367220398,1750704647991,-1611.43,0.00022881,2]
[367220400,1750704648000,-490.0,0.00022881,2]
[367220402,1750704648010,-490.0,0.00022881,2]
[367220404,1750704648020,-355.83350918,0.00022881,2]
[367220406,1750704648030,-490.0,0.00022881,2]
[367220408,1750704648040,-776.51,0.00022881,2]
[367220410,1750704648050,-2201.06,0.00022881,2]
[367220412,1750704648059,-490.0,0.00022881,2]
[367220414,1750704648069,-1014.79,0.00022881,2]
[367220416,1750704648078,-490.0,0.00022881,2]
[367220418,1750704648090,-855.49,0.00022881,2]
[367220420,1750704648099,-490.0,0.00022881,2]
[367220423,1750704648109,-490.0,0.00022881,2]
[367220424,1750704648119,-1402.97,0.00022881,2]
[367220426,1750704648129,-689.59,0.00022881,2]
[367220428,1750704648139,-1059.82,0.00022881,2]
[367220431,1750704648148,-505.33,0.00022881,2]
[367220433,1750704648158,-725.15,0.00022881,2]
[367220434,1750704648168,-490.0,0.00022881,2]
[367220436,1750704648178,-282.50864154,0.00022881,2]
[367220439,1750704648187,-1656.54,0.00022881,2]
[367220441,1750704648197,-739.07,0.00022881,2]
[367220452,1750704648295,-490.0,0.00022881,2]
[367220454,1750704648306,-974.72,0.00022881,2]
[367220456,1750704648316,-490.0,0.00022881,2]
[367220458,1750704648325,-490.0,0.00022881,2]
[367220460,1750704648334,-716.14,0.00022881,2]
[367220462,1750704648344,-490.0,0.00022881,2]
[367220464,1750704648353,-540.74,0.00022881,2]
[367220466,1750704648365,-490.0,0.00022881,2]
[367220468,1750704648374,-490.0,0.00022881,2]
[367220470,1750704648384,-490.0,0.00022881,2]
[367220472,1750704648393,-858.1,0.00022881,2]
[367220474,1750704648403,-490.0,0.00022881,2]
[367220476,1750704648412,-527.9,0.00022881,2]
[367220478,1750704648422,-490.0,0.00022881,2]
[367220480,1750704648431,-1140.56,0.00022881,2]
[367220482,1750704648441,-300.0,0.00022881,2]
[367220484,1750704648451,-616.26,0.00022881,2]
[367220486,1750704648460,-502.81724557,0.00022881,2]
[367220488,1750704648470,-490.0,0.00022881,2]
[367220491,1750704648483,-490.0,0.00022881,2]
[367220492,1750704648501,-490.0,0.00022881,2]
[367220494,1750704648511,-621.01,0.00022881,2]
[367220496,1750704648521,-893.22,0.00022881,2]
[367220499,1750704648532,-490.0,0.00022881,2]
[367220501,1750704648543,-535.88,0.00022881,2]
[367220502,1750704648552,-490.0,0.00022881,2]
[367220504,1750704648562,-912.53,0.00022881,2]
[367220507,1750704648572,-500.0,0.00022881,2]
[367220509,1750704648581,-1094.89,0.00022881,2]
[367220511,1750704648591,-490.0,0.00022881,2]
[367220513,1750704648600,-523.74,0.00022881,2]
[367220515,1750704648609,-568.56,0.00022881,2]
[367220517,1750704648622,-500.0,0.00022881,2]
[367220519,1750704648632,-494.46965957,0.00022881,2]
[367220521,1750704648641,-490.0,0.00022881,2]
[367220523,1750704648651,-490.0,0.00022881,2]
[367220525,1750704648661,-564.13,0.00022881,2]
[367220527,1750704648671,-490.0,0.00022881,2]
[367220529,1750704648681,-490.0,0.00022881,2]
[367220531,1750704648691,-783.66,0.00022881,2]
[367220533,1750704648700,-1888.74,0.00022881,2]
[367220535,1750704648710,-516.76,0.00022881,2]
[367220537,1750704648719,-490.0,0.00022881,2]
[367220539,1750704648730,-490.0,0.00022881,2]
[367220541,1750704648739,-490.0,0.00022881,2]
[367220543,1750704648748,-634.18,0.00022881,2]
[367220545,1750704648757,-840.53,0.00022881,2]
[367220547,1750704648766,-699.44,0.00022881,2]
[367220549,1750704648776,-2681.7,0.00022881,2]
[367220551,1750704648785,-674.03,0.00022881,2]
[367220553,1750704648794,-490.0,0.00022881,2]
[367220555,1750704648804,-900.32,0.00022881,2]
[367220557,1750704648813,-490.0,0.00022881,2]
[367220559,1750704648822,-585.78,0.00022881,2]
[367220561,1750704648831,-6853.44,0.00022881,2]
[367220563,1750704648840,-490.0,0.00022881,2]
[367220565,1750704648849,-1673.97,0.00022881,2]
[367220567,1750704648858,-1084.71,0.00022881,2]
[367220569,1750704648868,-490.0,0.00022881,2]
[367220571,1750704648877,-940.86,0.00022881,2]
[367220573,1750704648886,-628.5,0.00022881,2]
[367220575,1750704648895,-839.12,0.00022881,2]
[367220577,1750704648904,-490.0,0.00022881,2]
[367220579,1750704648913,-3572.35,0.00022881,2]
[367220581,1750704648923,-490.0,0.00022881,2]
[367220583,1750704648932,-1079.49,0.00022881,2]
[367220585,1750704648941,-490.0,0.00022881,2]
[367220587,1750704648950,-1064.08,0.00022881,2]
[367220589,1750704648960,-490.0,0.00022881,2]
[367220591,1750704648973,-1240.37,0.00022881,2]
[367220593,1750704648982,-1122.11,0.00022881,2]
[367220594,1750704648991,-490.0,0.00022881,2]
[367220596,1750704649000,-490.0,0.00022881,2]
[367220598,1750704649010,-490.0,0.00022881,2]
[367220600,1750704649020,-519.28724067,0.00022881,2]
[367220602,1750704649029,-832.09,0.00022881,2]
[367220604,1750704649039,-1358.97,0.00022881,2]
[367220606,1750704649048,-490.0,0.00022881,2]
[367220608,1750704649058,-4339.17,0.00022881,2]
[367220610,1750704649067,-2127.69,0.00022881,2]
[367220612,1750704649076,-1924.23,0.00022881,2]
[367220614,1750704649085,-977.79,0.00022881,2]
[367220616,1750704649095,-490.0,0.00022881,2]
[367220618,1750704649105,-490.0,0.00022881,2]
[367220620,1750704649116,-870.54,0.00022881,2]
[367220622,1750704649125,-490.0,0.00022881,2]
[367220624,1750704649135,-490.0,0.00022881,2]
[367220626,1750704649145,-500.0,0.00022881,2]
[367220628,1750704649156,-1467.41,0.00022881,2]
[367220630,1750704649165,-490.0,0.00022881,2]
[367220632,1750704649174,-785.73,0.00022881,2]
[367220634,1750704649183,-915.01,0.00022881,2]
[367220636,1750704649193,-810.35,0.00022881,2]
[367220638,1750704649202,-6486.33,0.00022881,2]
[367220640,1750704649212,-585.23308098,0.00022881,2]
[367220642,1750704649221,-1032.29,0.00022881,2]
[367220644,1750704649230,-1082.7,0.00022881,2]
[367220646,1750704649241,-490.0,0.00022881,2]
[367220648,1750704649250,-490.0,0.00022881,2]
[367220650,1750704649260,-549.09,0.00022881,2]
[367220652,1750704649270,-490.0,0.00022881,2]
[367220654,1750704649279,-490.0,0.00022881,2]
[367220656,1750704649289,-231.66633021,0.00022881,2]
[367220658,1750704649298,-1979.81,0.00022881,2]
[367220660,1750704649308,-2163.91,0.00022881,2]
[367220662,1750704649317,-10429.93,0.00022881,2]
[367220664,1750704649327,-1180.11,0.00022881,2]
[367220666,1750704649336,-1038.9,0.00022881,2]
[367220668,1750704649346,-490.0,0.00022881,2]
[367220670,1750704649355,-590.82,0.00022881,2]
[367220672,1750704649364,-490.0,0.00022881,2]
[367220674,1750704649374,-813.09,0.00022881,2]
[367220676,1750704649383,-1054.23,0.00022881,2]
[367220678,1750704649392,-827.81,0.00022881,2]
[367220679,1750704649401,-3195.81,0.00022881,2]
[367220681,1750704649410,-548.67463718,0.00022881,2]
[367220682,1750704649419,-490.0,0.00022881,2]
[367220684,1750704649428,-503.45421494,0.00022881,2]
[367220686,1750704649438,-490.0,0.00022881,2]
[367220688,1750704649448,-1504.3,0.00022881,2]
[367220690,1750704649457,-490.0,0.00022881,2]
[367220692,1750704649467,-747.77,0.00022881,2]
[367220694,1750704649478,-490.000002,0.00022881,2]
[367220696,1750704649488,-983.03,0.00022881,2]
[367220698,1750704649498,-556.83,0.00022881,2]
[367220699,1750704649508,-1501.37,0.00022881,2]
[367220700,1750704649524,-1328.26,0.00022881,2]
[367220701,1750704649534,-490.0,0.00022881,2]
[367220702,1750704649543,-978.12,0.00022881,2]
[367220703,1750704649553,-490.0,0.00022881,2]
[367220704,1750704649562,-490.0,0.00022881,2]
[367220705,1750704649571,-900.06,0.00022881,2]
[367220706,1750704649581,-3106.55,0.00022881,2]
[367220707,1750704649590,-1437.59,0.00022881,2]
[367220708,1750704649600,-841.86,0.00022881,2]
[367220709,1750704649610,-564.9,0.00022881,2]
[367220710,1750704649620,-490.0,0.00022881,2]
[367220711,1750704649631,-1066.77,0.00022881,2]
[367220712,1750704649640,-571.98,0.00022881,2]
[367220713,1750704649650,-490.0,0.00022881,2]
[367220714,1750704649659,-490.0,0.00022881,2]
[367220715,1750704649669,-490.0,0.00022881,2]
[367220716,1750704649678,-1741.33,0.00022881,2]
[367220717,1750704649687,-490.0,0.00022881,2]
[367220718,1750704649696,-490.0,0.00022881,2]
[367220719,1750704649705,-490.0,0.00022881,2]
[367220720,1750704649715,-166693.28,0.00022881,2]
[367220721,1750704649724,-490.0,0.00022881,2]
[367220722,1750704649734,-736.31,0.00022881,2]
[367220723,1750704649743,-1128.66,0.00022881,2]
[367220724,1750704649752,-1220.11,0.00022881,2]
[367220725,1750704649761,-490.0,0.00022881,2]
[367220726,1750704649771,-1004.8,0.00022881,2]
[367220727,1750704649779,-490.0,0.00022881,2]
[367220729,1750704649788,-490.0,0.00022881,2]
[367220730,1750704649797,-490.0,0.00022881,2]
[367220731,1750704649806,-490.0,0.00022881,2]
[367220732,1750704649816,-924.34,0.00022881,2]
[367220733,1750704649825,-694.9,0.00022881,2]
[367220734,1750704649835,-490.0,0.00022881,2]
[367220736,1750704649844,-1350.76,0.00022881,2]
[367220738,1750704649854,-857.69,0.00022881,2]
[367220740,1750704649864,-1104.51,0.00022881,2]
[367220742,1750704649874,-874.02,0.00022881,2]
[367220744,1750704649883,-490.0,0.00022881,2]
[367220746,1750704649892,-668.27,0.00022881,2]
[367220748,1750704649901,-490.0,0.00022881,2]
[367220750,1750704649910,-490.0,0.00022881,2]
[367220752,1750704649919,-1138.43,0.00022881,2]
[367220753,1750704649928,-500.0,0.00022881,2]
[367220755,1750704649937,-1536.84,0.00022881,2]
[367220757,1750704649947,-739.29,0.00022881,2]
[367220759,1750704649956,-490.0,0.00022881,2]
[367220761,1750704649967,-1885.24,0.00022881,2]
[367220763,1750704649976,-490.0,0.00022881,2]
[367220765,1750704649985,-522.87,0.00022881,2]
[367220766,1750704649994,-490.0,0.00022881,2]
[367220768,1750704650005,-624.6,0.00022881,2]
[367220770,1750704650014,-1945.01,0.00022881,2]
[367220772,1750704650024,-490.0,0.00022881,2]
[367220774,1750704650033,-490.0,0.00022881,2]
[367220776,1750704650043,-11134.73,0.00022881,2]
[367220778,1750704650053,-1081.89,0.00022881,2]
[367220780,1750704650062,-708.46,0.00022881,2]
[367220782,1750704650071,-872.68,0.00022881,2]
[367220784,1750704650080,-490.0,0.00022881,2]
[367220786,1750704650090,-490.0,0.00022881,2]
[367220788,1750704650099,-1814.84,0.00022881,2]
[367220790,1750704650107,-490.0,0.00022881,2]
[367220792,1750704650119,-2055.23,0.00022881,2]
[367220794,1750704650128,-490.0,0.00022881,2]
[367220796,1750704650138,-584.12,0.00022881,2]
[367220798,1750704650147,-490.0,0.00022881,2]
[367220800,1750704650157,-2120.57,0.00022881,2]
[367220802,1750704650168,-1516.61,0.00022881,2]
[367220804,1750704650178,-1377.33,0.00022881,2]
[367220806,1750704650188,-991.93,0.00022881,2]
[367220808,1750704650197,-1398.48,0.00022881,2]
[367220810,1750704650205,-556.0,0.00022881,2]
[367220812,1750704650215,-1006.26,0.00022881,2]
[367220814,1750704650224,-1782.02,0.00022881,2]
[367220816,1750704650233,-490.0,0.00022881,2]
[367220818,1750704650243,-2143.5,0.00022881,2]
[367220819,1750704650252,-490.0,0.00022881,2]
[367220821,1750704650261,-490.0,0.00022881,2]
[367220823,1750704650270,-1223.5,0.00022881,2]
[367220825,1750704650280,-490.0,0.00022881,2]
[367220827,1750704650289,-2926.22,0.00022881,2]
[367220829,1750704650300,-650.11,0.00022881,2]
[367220831,1750704650309,-1438.85,0.00022881,2]
[367220833,1750704650318,-983.83,0.00022881,2]
[367220835,1750704650327,-661.43,0.00022881,2]
[367220837,1750704650336,-490.0,0.00022881,2]
[367220839,1750704650345,-651.29,0.00022881,2]
[367220841,1750704650354,-2159.87,0.00022881,2]
[367220843,1750704650363,-164.978307,0.00022882,2]
[367220845,1750704650373,-500.0,0.00022882,2]
[367220847,1750704650383,-500.0,0.00022882,2]
[367220849,1750704650392,-490.0,0.00022882,2]
[367220851,1750704650401,-464.61974241,0.00022882,2]
[367220852,1750704650410,-490.0,0.00022882,2]
[367220854,1750704650419,-490.0,0.00022882,2]
[367220856,1750704650428,-490.0,0.00022882,2]
[367220858,1750704650437,-498.86513679,0.00022882,2]
[367220860,1750704650446,-559.01,0.00022882,2]
[367220862,1750704650455,-490.0,0.00022882,2]
[367220864,1750704650464,-490.0,0.00022882,2]
[367220866,1750704650474,-490.0,0.00022882,2]
[367220868,1750704650483,-500.0,0.00022882,2]
[367220870,1750704650492,-500.0,0.00022882,2]
[367220872,1750704650500,-490.0,0.00022882,2]
[367220874,1750704650509,-565.73,0.00022882,2]
[367220875,1750704650519,-490.0,0.00022882,2]
[367220877,1750704650529,-490.0,0.00022882,2]
[367220879,1750704650539,-490.0,0.00022882,2]
[367220881,1750704650548,-500.0,0.00022882,2]
[367220883,1750704650558,-1233.65,0.00022882,2]
[367220885,1750704650568,-1114.38,0.00022882,2]
[367220887,1750704650577,-1127.25,0.00022882,2]
[367220889,1750704650586,-490.0,0.00022882,2]
[367220891,1750704650595,-1825.68,0.00022882,2]
[367220893,1750704650604,-670.17,0.00022882,2]
[367220894,1750704650613,-500.0,0.00022882,2]
[367220896,1750704650622,-500.0,0.00022882,2]
[367220898,1750704650632,-654.07,0.00022882,2]
[367220900,1750704650643,-490.0,0.00022882,2]
[367220902,1750704650652,-1075.9,0.00022882,2]
[367220903,1750704650662,-490.0,0.00022882,2]
[367220904,1750704650671,-490.0,0.00022882,2]
[367220905,1750704650682,-490.0,0.00022882,2]
[367220906,1750704650691,-770.24,0.00022882,2]
[367220907,1750704650701,-1443.91,0.00022882,2]
[367220908,1750704650710,-1071.52,0.00022882,2]
[367220909,1750704650721,-1399.2,0.00022882,2]
[367220910,1750704650730,-964.29,0.00022882,2]
[367220911,1750704650739,-551.09,0.00022882,2]
[367220912,1750704650749,-1126.85,0.00022882,2]
[367220913,1750704650758,-1253.56,0.00022882,2]
[367220914,1750704650767,-1455.39,0.00022882,2]
[367220915,1750704650777,-681.26,0.00022882,2]
[367220916,1750704650786,-1106.14,0.00022882,2]
[367220917,1750704650796,-490.9,0.00022882,2]
[367220918,1750704650805,-490.0,0.00022882,2]
[367220919,1750704650814,-490.0,0.00022882,2]
[367220920,1750704650823,-823.23,0.00022882,2]
[367220921,1750704650833,-1186.66,0.00022882,2]
[367220922,1750704650842,-1136.3,0.00022882,2]
[367220923,1750704650852,-891.73,0.00022882,2]
[367220925,1750704650861,-401.26,0.00022882,2]
[367220927,1750704650872,-533.95,0.00022882,2]
[367220929,1750704650880,-1136.56,0.00022882,2]
[367220931,1750704650889,-1115.19,0.00022882,2]
[367220933,1750704650899,-708.14,0.00022882,2]
[367220935,1750704650908,-1283.45,0.00022882,2]
[367220937,1750704650917,-490.0,0.00022882,2]
[367220939,1750704650927,-1771.43,0.00022882,2]
[367220941,1750704650935,-984.26,0.00022882,2]
[367220943,1750704650945,-920.3,0.00022882,2]
[367220945,1750704650954,-490.0,0.00022882,2]
[367220947,1750704650967,-735.72,0.00022882,2]
[367220949,1750704650976,-1889.31,0.00022882,2]
[367220951,1750704650985,-931.44,0.00022882,2]
[367220953,1750704650994,-1151.52,0.00022882,2]
[367220954,1750704651003,-550.81,0.00022882,2]
[367220955,1750704651012,-965.81,0.00022882,2]
[367220956,1750704651021,-1267.64,0.00022882,2]
[367220957,1750704651030,-3224.06,0.00022882,2]
[367220958,1750704651039,-1311.88,0.00022882,2]
[367220959,1750704651050,-490.0,0.00022882,2]
[367220960,1750704651059,-1636.59,0.00022882,2]
[367220961,1750704651069,-588.26,0.00022882,2]
[367220962,1750704651078,-2021.59,0.00022882,2]
[367220963,1750704651087,-490.0,0.00022882,2]
[367220964,1750704651099,-1038.29,0.00022882,2]
[367220965,1750704651109,-738.17,0.00022882,2]
[367220966,1750704651119,-785.34,0.00022882,2]
[367220967,1750704651128,-878.13,0.00022882,2]
[367220968,1750704651137,-2826.12,0.00022882,2]
[367220969,1750704651147,-841.98,0.00022882,2]
[367220970,1750704651156,-649.62,0.00022882,2]
[367220971,1750704651165,-1913.21,0.00022882,2]
[367220972,1750704651174,-490.0,0.00022882,2]
[367220973,1750704651183,-736.4,0.00022882,2]
[367220974,1750704651192,-1235.45,0.00022882,2]
[367220975,1750704651201,-704.49,0.00022882,2]
[367220976,1750704651210,-1235.24,0.00022882,2]
[367220978,1750704651219,-5724.29,0.00022882,2]
[367220980,1750704651229,-1160.76,0.00022882,2]
[367220982,1750704651238,-881.09,0.00022882,2]
[367220984,1750704651247,-1486.45,0.00022882,2]
[367220985,1750704651257,-2915.91,0.00022882,2]
[367220986,1750704651266,-1015.77,0.00022882,2]
[367220987,1750704651276,-1604.28,0.00022882,2]
[367220988,1750704651285,-1003.34,0.00022882,2]
[367220989,1750704651294,-1398.25,0.00022882,2]
[367220990,1750704651303,-490.0,0.00022882,2]
[367220991,1750704651312,-490.0,0.00022882,2]
[367220992,1750704651321,-985.39,0.00022882,2]
[367220993,1750704651330,-622.45,0.00022882,2]
[367220994,1750704651340,-5196.52,0.00022882,2]
[367220995,1750704651349,-2428.73,0.00022882,2]
[367220996,1750704651359,-4327.07,0.00022882,2]
[367220997,1750704651370,-490.0,0.00022882,2]
[367220999,1750704651379,-5240.33,0.00022882,2]
[367221000,1750704651388,-1923.11,0.00022882,2]
[367221001,1750704651397,-884.76,0.00022882,2]
[367221002,1750704651406,-2840.6,0.00022882,2]
[367221003,1750704651415,-490.0,0.00022882,2]
[367221004,1750704651425,-547.09,0.00022882,2]
[367221005,1750704651433,-8094.9,0.00022882,2]
[367221006,1750704651442,-1435.44,0.00022882,2]
[367221007,1750704651451,-1552.42,0.00022882,2]
[367221008,1750704651461,-490.0,0.00022883,2]
[367221009,1750704651471,-490.0,0.00022883,2]
[367221010,1750704651480,-490.0,0.00022883,2]
[367221011,1750704651489,-490.0,0.00022883,2]
[367221012,1750704651499,-490.0,0.00022883,2]
[367221013,1750704651508,-490.0,0.00022883,2]
[367221014,1750704651517,-1035.51,0.00022883,2]
[367221015,1750704651531,-876.75,0.00022883,2]
[367221016,1750704651540,-669.73,0.00022883,2]
[367221017,1750704651549,-490.0,0.00022883,2]
[367221018,1750704651559,-490.0,0.00022883,2]
[367221019,1750704651568,-490.0,0.00022883,2]
[367221020,1750704651577,-490.0,0.00022883,2]
[367221021,1750704651586,-490.0,0.00022883,2]
[367221022,1750704651595,-490.0,0.00022883,2]
[367221023,1750704651605,-490.0,0.00022883,2]
[367221024,1750704651617,-490.0,0.00022883,2]
[367221025,1750704651625,-490.0,0.00022883,2]
[367221026,1750704651635,-490.0,0.00022883,2]
[367221027,1750704651644,-594.45,0.00022883,2]
[367221028,1750704651653,-684.81,0.00022883,2]
[367221029,1750704651662,-490.0,0.00022883,2]
[367221030,1750704651673,-490.0,0.00022883,2]
[367221031,1750704651683,-490.0,0.00022883,2]
[367221032,1750704651692,-154.15,0.00022883,2]
[367221033,1750704651702,-490.0,0.00022883,2]
[367221035,1750704651711,-490.0,0.00022883,2]
[367221037,1750704651720,-500.0,0.00022883,2]
[367221039,1750704651729,-500.0,0.00022883,2]
[367221041,1750704651739,-500.0,0.00022883,2]
[367221043,1750704651747,-500.0,0.00022883,2]
[367221045,1750704651756,-3956.37440719,0.00022933,2]
[367221047,1750704651765,-151.45809238,0.00022945,2]
[367221049,1750704651776,-8305.69777412,0.00022961,2]
[367221051,1750704651785,-1200.044949,0.00022962,4]
[367221053,1750704651795,-500.0,0.00022982,2]
[367221056,1750704651814,-500.0,0.00022982,2]
[367221058,1750704651824,-5517.54671505,0.00023003,8]
[367221060,1750704651833,-2000.0,0.00023023,2]
[367221062,1750704651842,-200.0,0.00023023,2]
[367221064,1750704651851,-151.45809238,0.00023027,2]
[367221066,1750704651860,-174.12764731,0.00023055,2]
[367221068,1750704651870,-611.6463075,0.00023056,2]
[367221069,1750704651880,-500.0,0.00023068,2]
[367221071,1750704651890,-3956.37440719,0.00023086,2]
[367221073,1750704651900,-151.45809238,0.00023109,2]
[367221076,1750704651909,-202.0,0.00023117,5]
[367221078,1750704651920,-161.23,0.00023129,2]
[367221080,1750704651930,-161.23,0.00023131,2]
[367221081,1750704651939,-8305.69777412,0.00023141,2]
[367221083,1750704651949,-490.0,0.00023154,2]
[367221084,1750704651958,-490.0,0.00023154,2]
[367221086,1750704651973,-490.0,0.00023154,2]
[367221088,1750704651982,-586.08385612,0.00023154,2]
[367221090,1750704651991,-490.0,0.00023154,2]
[367221091,1750704652000,-490.0,0.00023154,2]
[367221092,1750704652011,-490.0,0.00023154,2]
[367221093,1750704652021,-490.0,0.00023154,2]
[367221094,1750704652031,-490.0,0.00023154,2]
[367221095,1750704652042,-490.0,0.00023154,2]
[367221096,1750704652052,-490.0,0.00023154,2]
[367221097,1750704652062,-490.0,0.00023154,2]
[367221098,1750704652071,-490.0,0.00023154,2]
[367221099,1750704652081,-490.0,0.00023154,2]
[367221100,1750704652090,-490.0,0.00023154,2]
[367221101,1750704652100,-490.0,0.00023154,2]
[367221102,1750704652109,-490.0,0.00023154,2]
[367221103,1750704652120,-490.0,0.00023154,2]
[367221104,1750704652129,-490.0,0.00023154,2]
[367221105,1750704652139,-490.0,0.00023154,2]
[367221106,1750704652149,-490.0,0.00023154,2]
[367221107,1750704652159,-573.86,0.00023154,2]
[367221108,1750704652169,-269.13,0.00023154,2]
[367221109,1750704652179,-490.0,0.00023154,2]
[367221110,1750704652189,-579.44,0.00023154,2]
[367221111,1750704652198,-490.0,0.00023154,2]
[367221112,1750704652208,-490.0,0.00023154,2]
[367221113,1750704652217,-698.13,0.00023154,2]
[367221114,1750704652228,-490.0,0.00023154,2]
[367221115,1750704652238,-757.53,0.00023154,2]
[367221116,1750704652247,-490.0,0.00023154,2]
[367221117,1750704652257,-931.34,0.00023154,2]
[367221118,1750704652267,-490.0,0.00023154,2]
[367221119,1750704652277,-490.0,0.00023154,2]
[367221120,1750704652286,-596.45,0.00023154,2]
[367221121,1750704652296,-560.38,0.00023154,2]
[367221122,1750704652306,-843.33,0.00023154,2]
[367221123,1750704652315,-493.0,0.00023154,2]
[367221124,1750704652325,-490.0,0.00023154,2]
[367221125,1750704652334,-258.68327713,0.00023154,2]
[367221126,1750704652344,-490.0,0.00023154,2]
[367221127,1750704652507,-490.0,0.00023154,2]
[367221128,1750704652517,-490.0,0.00023154,2]
[367221129,1750704652527,-490.0,0.00023154,2]
[367221130,1750704652537,-1171.21,0.00023154,2]
[367221131,1750704652546,-7051.51,0.00023154,2]
[367221132,1750704652555,-497.73,0.00023154,2]
[367221133,1750704652564,-490.0,0.00023154,2]
[367221134,1750704652574,-490.0,0.00023154,2]
[367221135,1750704652584,-885.37,0.00023154,2]
[367221136,1750704652593,-490.0,0.00023154,2]
[367221137,1750704652603,-1391.01,0.00023154,2]
[367221138,1750704652613,-490.0,0.00023154,2]
[367221139,1750704652624,-1263.87,0.00023154,2]
[367221140,1750704652633,-490.0,0.00023154,2]
[367221141,1750704652643,-891.29,0.00023154,2]
[367221142,1750704652653,-494.6,0.00023154,2]
[367221143,1750704652662,-863.04,0.00023154,2]
[367221144,1750704652671,-490.0,0.00023154,2]
[367221145,1750704652681,-490.0,0.00023154,2]
[367221146,1750704652692,-752.25,0.00023154,2]
[367221147,1750704652702,-490.0,0.00023154,2]
[367221148,1750704652713,-976.29,0.00023154,2]
[367221149,1750704652723,-815.82,0.00023154,2]
[367221150,1750704652733,-863.97,0.00023154,2]
[367221151,1750704652744,-490.0,0.00023154,2]
[367221152,1750704652754,-490.0,0.00023154,2]
[367221153,1750704652764,-768.99,0.00023154,2]
[367221154,1750704652774,-490.0,0.00023154,2]
[367221155,1750704652784,-1759.01,0.00023154,2]
[367221156,1750704652793,-551.99,0.00023154,2]